Cogmind - Beta 14 @@@ ROGUE MODE // 2024.12.02 @ 22:39:26 Player: KTG-V3 Result: Destroyed by G-73 Enforcer with Phase Gun Performance ------------- Evolutions (9) 4500 Regions Visited (28) 5600 Robots Destroyed (548) 2740 Value Destroyed (27230) 27230 Prototype IDs (76) 1520 Alien Tech Used (4) 800 Bonus (20563) 20563 TOTAL SCORE: 62953 Bonus ------- High Alert Combat Kills 7114 Follower Combat Kills 450 Met Data Miner 300 Destroyed Z-Imprinter 1000 Triggered Deep Caves Wall 500 Exposed GOLEM Chamber 500 Met Zhirov 300 Scanned by Researcher 500 Destroyed MAIN.C Guards 500 Met MAIN.C 5000 Destroyed MAIN.C Shell 5000 Friendly Fire -601 Cogmind --------- Core Integrity 0/1600 Matter 232/300 Energy 100/100 System Corruption 37% Temperature Cool (9) Movement Core (50) Location -1/Command Parts ------- > --- POWER (4) -------- (None) > --- PROPULSION (7) --- Assembled Alloy Leg > --- UTILITY (12) ----- (None) > --- WEAPON (2) ------- (None) > --- INVENTORY (5) ---- Energy Well (350) Energy Well (350) Peak State ------------ > --- POWER ------------ Assembled Flux Generator Quantum Reactor Light Quantum Reactor > --- PROPULSION ------- Myomer Leg Myomer Leg Assembled Alloy Leg Assembled Alloy Leg Centrium Leg Centrium Leg High-density Centrium Leg > --- UTILITY ---------- Experimental Cooling System Assembled Nanovents Assembled Nanovents Assembled Nanovents High-capacity Storage Unit Assembled Biocell Array Assembled Suspension Frame Experimental Transmission Jammer Assembled Alloy Armor Antimissile System GOLEM Unit > --- WEAPON ----------- Compact HERF Cannon Cooled Phase Cannon > --- INVENTORY -------- Quantum Reactor Light Quantum Reactor Improved Heavy Siege Treads Myomer Leg Energy Well Energy Well Energy Well Improved Utility Shielding Improved Utility Shielding Antimissile System High-powered Tractor Beam Transdimensional Reconstructor Subatomic Replicator Compact HERF Cannon Null Cannon Perforator Omega Cannon [Rating: 225] Favorites ----------- Power Assembled Flux Generator Engine Heavy Ion Engine Reactor Assembled Flux Generator Propulsion Assembled Alloy Leg Treads Light Treads Leg Assembled Alloy Leg Wheel Wheel Hover Unit Gravmag System Utility High-capacity Storage Unit Device GOLEM Unit Storage High-capacity Storage Unit Processor Enhanced Optical Array Hackware Hacking Suite Protection Hardened Heavy Armor Plating Artifact Phase Redirector Weapon Assembled Focal Cannon Energy Gun Medium Laser Energy Cannon Assembled Focal Cannon Ballistic Gun Assault Rifle Ballistic Cannon Advanced Assault Cannon Launcher Rocket Launcher Special Weapon Plasma Cutter Slashing Weapon Ripper Piercing Weapon Lance Build | -11 -10 -10 -9 -9 -8 -7 -7 -7 -7 -7 -6 -6 -6 -6 -6 -5 -5 -4 -4 -4 -4 -3 -3 -3 -2 -2 -1 -1 ------- Run | Yrd Mat Min Mat Min Mat Fac Low Low Zio Dee Pro Fac Low Low Dat Pro Fac Fac Upp Upp Zhi Pro Res Tes Res Qua Acc Com Slots Evolved 18 | . . . 2 . 2 2 . . . . . 2 . . . . 2 2 . . . . 2 . 2 . 2 . Power 3 | . . . . . . 1 . . . . . . . . . . . . . . . . 2 . . . . . Propulsion 5 | . . . . . 1 1 . . . . . . . . . . . . . . . . . . 1 . 2 . Utility 10 | . . . 2 . 1 . . . . . . 2 . . . . 2 2 . . . . . . 1 . . . Weapon . | . . . . . . . . . . . . . . . . . . . . . . . . . . . . . Parts Attached 657 | 7 9 11 49 1 30 23 16 15 6 74 2 58 3 7 15 14 47 13 4 4 4 1 31 51 27 43 22 70 Power 55 | 1 3 2 3 . 2 1 . . . 4 . . . . . . 1 . . . . . 6 12 1 7 3 9 Engine 16 | 1 3 2 3 . 2 1 . . . 2 . . . . . . 1 . . . . . . 1 . . . . Core . | . . . . . . . . . . . . . . . . . . . . . . . . . . . . . Reactor 39 | . . . . . . . . . . 2 . . . . . . . . . . . . 6 11 1 7 3 9 Propulsion 115 | 2 2 4 9 1 6 4 . 2 . 10 2 9 1 . 6 1 7 5 1 . . . 7 4 . 4 6 22 Treads 58 | 2 2 1 6 1 6 4 . 2 . 6 1 3 . . . . 6 5 1 . . . 6 1 . . 1 4 Leg 51 | . . 2 3 . . . . . . 2 1 4 1 . 6 1 1 . . . . . . 3 . 4 5 18 Wheel 1 | . . 1 . . . . . . . . . . . . . . . . . . . . . . . . . . Hover 5 | . . . . . . . . . . 2 . 2 . . . . . . . . . . 1 . . . . . Flight . | . . . . . . . . . . . . . . . . . . . . . . . . . . . . . Utility 366 | 2 1 1 16 . 7 12 11 9 2 42 . 49 2 6 8 11 35 7 3 4 4 1 17 31 23 30 9 23 Device 249 | 1 . 1 12 . 4 11 11 8 2 29 . 43 1 5 3 3 18 3 1 1 3 1 10 22 20 17 8 11 Storage 30 | 1 1 . . . . . . . . 1 . 3 . . 1 . 7 2 2 1 . . 2 1 3 4 . 1 Processor 4 | . . . . . . . . . . . . . . . . . 1 . . . . . . 1 . 2 . . Hackware 7 | . . . . . . 1 . . . . . 1 . . . . . 2 . . . . 2 1 . . . . Protection 72 | . . . 4 . 3 . . 1 . 12 . 2 1 1 4 8 9 . . 2 1 . 3 6 . 3 1 11 Artifact 4 | . . . . . . . . . . . . . . . . . . . . . . . . . . 4 . . Weapon 121 | 2 3 4 21 . 15 6 5 4 4 18 . . . 1 1 2 4 1 . . . . 1 4 3 2 4 16 Energy Gun 21 | 2 1 2 9 . 4 . . . . 2 . . . . . . 1 . . . . . . . . . . . Energy Cannon 57 | . . . 7 . 7 4 3 2 2 11 . . . . 1 . . . . . . . 1 2 3 1 2 11 Ballistic Gun 3 | . 2 . . . 1 . . . . . . . . . . . . . . . . . . . . . . . Ballistic Cannon 15 | . . . . . . 2 1 1 1 . . . . . . . . . . . . . . 2 . 1 2 5 Launcher 21 | . . 1 5 . 3 . 1 1 . 4 . . . 1 . 2 3 . . . . . . . . . . . Special Weapon 2 | . . 1 . . . . . . 1 . . . . . . . . . . . . . . . . . . . Impact Weapon . | . . . . . . . . . . . . . . . . . . . . . . . . . . . . . Slashing Weapon 1 | . . . . . . . . . . 1 . . . . . . . . . . . . . . . . . . Piercing Weapon 1 | . . . . . . . . . . . . . . . . . . 1 . . . . . . . . . . Special Melee Weapon . | . . . . . . . . . . . . . . . . . . . . . . . . . . . . . Unidentified Prototypes 55 | . . . 4 . 5 . . . 1 13 . . . . 3 . 1 1 . . 3 . 2 16 1 3 . 2 Corrupted Parts 4 | . . . . . . . . . . . . . . . . . . . 1 . . . . . . 1 . 2 System Corruption 25 | . . . . . . . . . . . . . . . . . . . 5 . . . . . . 5 . 15 Parts Lost 125 | . 2 5 1 . . . . 2 . 8 1 5 . 1 1 4 15 12 1 . . . 2 6 5 4 13 37 Power 20 | . . 2 . . . . . . . 2 . . . . . . 2 1 . . . . . 3 1 1 2 6 Propulsion 34 | . 1 2 . . . . . 2 . 1 1 3 . . . 1 4 4 . . . . 1 . . 1 2 11 Utility 58 | . . 1 1 . . . . . . 4 . 2 . 1 1 2 6 5 1 . . . 1 3 4 2 9 15 Weapon 13 | . 1 . . . . . . . . 1 . . . . . 1 3 2 . . . . . . . . . 5 Highest Loss Streak 30 | . 1 5 1 . . . . 1 . 4 1 2 . 1 1 2 11 8 1 . . . 1 2 3 3 5 30 To Critical Strikes 2 | . . . . . . . . . . . . . . . . 1 . . . . . . . . . 1 . . Average Slot Usage (%) 86 | . 99 99 99 100 92 84 92 92 90 88 83 81 80 84 76 81 74 73 82 84 75 84 86 83 81 84 87 83 Engine 4 | . 14 14 11 11 9 7 15 15 15 7 . . . . . . . . . . . . . . . . . . Reactor 4 | . . . . . . . . . . 3 7 6 6 6 5 5 3 4 4 5 5 5 13 16 16 15 15 11 Treads 12 | . 27 26 16 22 26 29 30 30 30 21 11 2 . . . . 7 12 6 5 5 5 7 1 . . . 1 Leg 10 | . . . 5 . . . . . . 8 17 19 25 26 24 22 10 6 8 10 7 10 9 9 12 14 26 24 Device 16 | . 14 13 24 22 20 8 7 7 7 14 15 17 13 17 11 9 14 23 25 21 20 25 22 23 22 20 21 23 Storage 10 | . 14 14 11 11 9 7 7 7 7 9 15 13 13 13 14 13 10 7 4 5 8 10 9 9 8 8 8 8 Hackware 2 | . . . . . . 5 7 7 7 . . . . . . . . . 10 10 10 5 4 4 7 4 2 . Protection 6 | . . . 8 11 9 7 7 7 7 6 . 5 5 7 9 16 12 3 4 8 5 5 4 6 2 5 4 9 Energy Cannon 10 | . . . 9 22 14 11 7 7 6 13 15 13 13 12 9 12 8 7 9 10 6 10 9 8 8 7 5 4 Ballistic Cannon 1 | . . . . . . 3 6 6 6 . . . . . . . . . . . . . . . . . 1 . Peak Build Rating 225 | 7 9 8 22 21 35 44 46 47 53 109 101 123 119 128 131 127 144 160 149 149 143 144 156 198 216 219 224 225 Average Rating 95 | 5 7 7 19 21 31 39 44 44 44 71 99 112 113 119 110 117 111 128 143 142 128 142 148 173 207 201 201 202 On Entrance 92 | . 7 8 8 21 21 35 44 46 45 46 101 101 113 114 118 127 115 51 80 149 139 143 143 149 198 207 187 161 Naked Turns . | . . . . . . . . . . . . . . . . . . . . . . . . . . . . . Heaviest Build 222 | 15 50 50 67 64 82 92 94 95 93 117 113 177 177 177 165 168 172 222 82 103 103 104 177 177 153 177 182 158 Greatest Support 228 | 40 40 40 40 40 62 90 90 90 90 92 84 99 96 96 104 104 88 101 76 60 60 60 60 130 180 160 188 228 Greatest Overweight (x) 5 | 1 1 4 5 1 1 1 1 1 1 1 2 2 1 1 1 2 2 3 1 1 1 1 2 2 1 2 1 2 Average Overweight (x) . | . . 1 1 1 1 . 1 1 . . 1 1 1 1 1 1 1 . 1 1 1 1 1 1 . . . . Largest Inventory Capacity 30 | 8 20 20 20 20 20 20 20 20 20 20 20 25 25 25 25 25 25 30 5 15 15 15 20 20 20 20 20 20 Average Capacity 19 | 7 19 20 20 20 20 20 20 20 20 20 20 21 25 25 25 25 20 14 5 5 15 15 15 20 20 20 20 19 Most Carried 25 | 6 20 18 20 20 20 20 20 20 20 20 20 22 24 25 25 25 25 17 5 7 12 15 16 20 20 20 20 20 Average Carried 18 | 3 13 17 19 19 19 19 20 19 19 18 19 19 23 23 24 23 19 9 4 5 11 14 14 19 19 19 19 18 Final Capacity 25 | 8 20 20 20 20 20 20 20 20 20 20 20 25 25 25 25 25 5 5 5 15 15 15 20 20 20 20 20 5 Final Carried 25 | 6 18 13 19 20 20 20 20 20 20 20 20 22 24 25 25 22 5 5 5 7 12 15 16 20 18 20 20 2 Class Distribution -------------------- 39% | Mutant 36% | Golem 9% | Generator-Mutant 8% | Hacker-Golem 4% | Generator-Golem Dominant Class ---------------- Mutant | -10/Materials Mutant | -10/Mines Mutant | -9/Materials Mutant | -9/Mines Mutant | -8/Materials Mutant | -7/Factory Mutant | -7/Lower Caves Mutant | -7/Lower Caves Mutant | -7/Zion Mutant | -7/Deep Caves Golem | -6/Proximity Caves Golem | -6/Factory Golem | -6/Lower Caves Golem | -6/Lower Caves Golem | -6/Data Miner Golem | -5/Proximity Caves Golem | -5/Factory Golem | -4/Factory Hacker-Golem | -4/Upper Caves Hacker-Golem | -4/Upper Caves Hacker-Golem | -4/Zhirov Golem | -3/Proximity Caves Generator-Golem | -3/Research Generator-Mutant | -3/Testing Generator-Mutant | -2/Research Generator-Mutant | -2/Quarantine Generator-Mutant | -1/Access Generator-Mutant | -1/Command Resources | -11 -10 -10 -9 -9 -8 -7 -7 -7 -7 -7 -6 -6 -6 -6 -6 -5 -5 -4 -4 -4 -4 -3 -3 -3 -2 -2 -1 -1 ----------- Run | Yrd Mat Min Mat Min Mat Fac Low Low Zio Dee Pro Fac Low Low Dat Pro Fac Fac Upp Upp Zhi Pro Res Tes Res Qua Acc Com Matter Collected 12012 | 266 391 246 621 10 352 408 295 330 70 951 20 581 349 68 210 242 625 79 188 195 61 107 365 593 296 1159 1435 1499 Remotely 4316 | . . . . . . 243 144 151 . 170 . 278 . . . 42 418 . . . . . . . 52 708 1240 870 Salvage Created 29949 | 62 661 168 1329 64 351 396 160 449 . 980 505 3048 288 104 348 971 1404 1033 644 941 125 158 1856 2683 2235 2941 3124 2921 Parts 1434 | 8 47 6 77 4 18 25 11 30 . 30 27 147 18 8 14 45 82 59 31 40 1 11 123 129 110 131 104 98 Haulers Intercepted 15 | . 1 . 4 . 5 . . . . . . 1 . . . . 1 . . . . . 1 . 1 . 1 . Recyclers Shooed 14 | . 2 . 3 . . . . . . . . 2 . . . . 1 . . . . . 1 . . . 5 . Parts Field Recycled . | . . . . . . . . . . . . . . . . . . . . . . . . . . . . . Retrieved Matter . | . . . . . . . . . . . . . . . . . . . . . . . . . . . . . Parts Self-Destructed 219 | . . . . . . . 9 40 1 . 27 . 17 6 . 44 . . 31 40 1 3 . . . . . . Prevented 2 | . . . . . . . . 1 . . . . 1 . . . . . . . . . . . . . . . Kills | -11 -10 -10 -9 -9 -8 -7 -7 -7 -7 -7 -6 -6 -6 -6 -6 -5 -5 -4 -4 -4 -4 -3 -3 -3 -2 -2 -1 -1 ------- Run | Yrd Mat Min Mat Min Mat Fac Low Low Zio Dee Pro Fac Low Low Dat Pro Fac Fac Upp Upp Zhi Pro Res Tes Res Qua Acc Com Combat Hostiles Destroyed 475 | . 14 10 25 . 2 11 8 10 . 51 12 48 4 4 4 21 17 19 12 14 . 1 26 33 25 37 33 34 Melee 2 | . . . . . . . . . . 1 . . . . . . . . . . . . . . . . . 1 Guns 29 | . 14 7 8 . . . . . . . . . . . . . . . . . . . . . . . . . Cannons 352 | . . . 6 . 2 11 5 8 . 10 12 47 4 1 3 14 9 17 11 14 . 1 25 33 21 37 32 29 AOE 72 | . . 3 6 . . . 3 2 . 38 . . . 3 . 7 7 2 . . . . . . . . 1 . Classes Destroyed 28 | 2 4 2 4 . . 2 1 1 . 3 2 1 1 . . 1 . . . . . 1 . 1 1 1 . . Worker 30 | 2 3 1 . . 1 . . . . . . 3 . . . . 7 2 . . . . 1 2 2 3 2 1 Builder 18 | . . . 1 . . . . . . . . 2 . . . . 2 . . . . . 1 4 6 1 1 . Tunneler 5 | 1 1 . . . . . . . . . . . . . . . 1 . . . . . 1 . 1 . . . Hauler 15 | . 1 . 4 . 5 . . . . . . 1 . . . . 1 . . . . . 1 . 1 . 1 . Recycler 20 | . . 1 4 1 . . . . . . . 2 . . . . 2 . . . . . . 1 1 . 4 4 Minesweeper 3 | . . . . . . . . . . . . . 1 1 . . . . 1 . . . . . . . . . Mechanic 2 | . . . . . . . . . . . . . . . . . . . . . . . . . . 1 . 1 Operator 7 | . . . 1 . . . . . . . . 1 . . . . 1 2 . . . . 1 . . 1 . . Drone 2 | . . . . . . . . . . . 2 . . . . . . . . . . . . . . . . . Watcher 20 | . 3 . 3 . . . . . . . . 3 . . . . 1 1 . . . . 4 2 2 1 . . Swarmer 98 | . 3 3 8 . . 2 7 2 . . 6 10 . 3 . 6 . 7 5 4 . . 9 . 4 4 9 6 Saboteur 4 | . . . . . . . . . . . . . . . . 1 . . . . . . . . 1 1 . 1 Grunt 129 | . 11 . 9 . 1 5 . . . . . 22 2 . . 8 1 2 2 7 . . 1 13 10 10 13 12 Brawler 11 | . . . . . . . . . . . . 4 . . . 2 . . . 1 . . . . . 2 1 1 Duelist 14 | . . . 2 . . . . . . . . 1 . . . 2 . . . 1 . . . 1 1 3 2 1 Protector 3 | . . . . . . . . . . . . . . . . . . . . . . . . . 1 1 1 . Researcher 2 | . . . . . . . . . . . . . . . . . . . . . . . . 1 . 1 . . Sentry 26 | . . . 6 . . 1 1 1 . . . 3 1 . . 1 . 1 1 1 . . 4 . 3 . 1 1 Specialist 10 | . . . . . . . . 3 . . . . . . . . 3 2 . . . . . 2 . . . . Hunter 39 | . . . . . . 1 . 2 . . 3 . . 1 . . 8 2 2 . . . . 5 . 9 4 2 Programmer 64 | . . . . . . 2 . 2 . . . 7 . . . . 4 5 2 . . 1 12 11 5 7 2 4 Heavy 2 | . . . . . . . . . . . . 1 . . . . . . . . . . . . . . . 1 Behemoth 4 | . . . . . . . . . . . 1 . 1 . . 1 1 . . . . . . . . . . . M Guard 2 | . . . . . . . . . . . . . . . . . . . . . . . . . . . . 2 Enhanced Grunt 4 | . . . . . . . . . . . . . . . 4 . . . . . . . . . . . . . Combat Programmer 2 | . . . . . . . . . . . . . . . . . . . . . . . . . . . . 2 Protovariant X 1 | . . . . . . . . . . . . . . . . . . . . . . . . 1 . . . . Z-Technician 5 | . . . . . . . . . . 5 . . . . . . . . . . . . . . . . . . Z-Light 3 | . . . . . . . . . . 3 . . . . . . . . . . . . . . . . . . Decomposer 1 | . . . . . . . . . . . . . . . . . . . . 1 . . . . . . . . Samaritan 2 | . . . . . . . . . . . . . . . . . . . . . . 2 . . . . . . Assembler 2 | . . . . . . . . . . 2 . . . . . . . . . . . . . . . . . . Assembled 52 | . . 7 . . . . . . . 45 . . . . . . . . . . . . . . . . . . Golem 2 | . . . . . . . . . . 2 . . . . . . . . . . . . . . . . . . Savage 1 | . . . . . . . 1 . . . . . . . . . . . . . . . . . . . . . Best Kill Streak 38 | 2 3 3 5 1 1 4 4 6 . 38 3 9 2 3 1 15 17 9 3 4 . 1 7 5 14 15 17 10 Combat Bots Only 36 | . 3 3 4 . 1 4 4 6 . 36 3 8 2 3 1 15 7 8 3 4 . 1 5 4 6 14 8 9 Max Kills in Single Turn 17 | 1 1 2 3 1 1 1 2 1 . 17 1 1 1 2 1 3 4 4 1 1 . 1 2 2 3 3 2 4 Gunslinging . | . . . . . . . . . . . . . . . . . . . . . . . . . . . . . Exploded 17 | . . 2 2 . . . 2 1 . 17 . . . 2 . 3 3 2 . . . . . . . . 1 . Melee 1 | . . . . . . . . . . 1 . . . . . . . . . . . . . . . . . 1 Uniques/NPCs Destroyed 3 | . . . . . 1 . . . . 1 . . . . . . . . . . . . . . . . . 1 7R-MNS (-8/Materials) Z-Imprinter (-7/Deep Caves) MAIN.C Shell (-1/Command) Combat | -11 -10 -10 -9 -9 -8 -7 -7 -7 -7 -7 -6 -6 -6 -6 -6 -5 -5 -4 -4 -4 -4 -3 -3 -3 -2 -2 -1 -1 -------- Run | Yrd Mat Min Mat Min Mat Fac Low Low Zio Dee Pro Fac Low Low Dat Pro Fac Fac Upp Upp Zhi Pro Res Tes Res Qua Acc Com Hostile Shots Fired 3791 | . 93 36 70 . 20 67 80 70 . 85 102 332 61 19 35 162 436 439 78 49 . 5 116 308 99 288 311 430 Missed 1286 | . 20 9 16 . 1 18 32 16 . 23 32 91 24 3 6 40 149 167 40 21 . 1 41 132 45 98 110 151 Intercepted 23 | . . . . . . . . . . . . . . . . . . . . . . . . . . . . 23 Damage Taken 42444 | . 767 454 492 . 469 724 557 929 . 1853 1296 3070 570 247 1017 2191 5206 3841 544 330 . 81 1458 2438 966 1927 3106 7911 Core 5366 | . 131 90 78 . 24 80 55 . . 232 108 345 73 . 67 287 957 446 33 15 . . 130 297 93 202 225 1398 Absorbed by Shields 5662 | . . . 124 . . . . . . . . 166 . 52 51 . 287 . . . . . 250 1204 722 1856 950 . Reduced by Siege Mode 195 | . . . . . . . . . . . . . . . . . . . . . . . . . . . . 195 Redirected to Core 128 | . . . . . . . . . . . . . . . . . . . . . . . . . . 128 . . Redirected to Shielding 973 | . . . . . . . . . . 132 . . . . . . 323 . . . . . . 104 . 5 . 409 Ignored by Resistances 4694 | . . . . . . . . . . . . 646 . 19 262 627 454 356 116 69 . 16 246 143 213 592 349 586 Regen/Repaired (Parts) 115 | . 92 . . . 23 . . . . . . . . . . . . . . . . . . . . . . . Core Remaining (%) 52 | 100 . 11 . 80 95 . . . . . 32 . . . . 9 4 . . . . 57 . 67 . 73 . . Volleys Fired 1668 | 7 85 36 81 6 20 33 26 24 1 68 69 174 31 12 52 51 67 48 31 61 3 8 84 130 139 118 82 121 Largest 2 | 2 2 2 2 2 2 2 2 2 1 2 2 2 2 2 2 2 2 2 2 2 1 2 2 2 2 2 2 2 Hottest 260 | 90 70 100 136 136 148 143 128 134 65 138 50 50 50 50 50 50 80 50 50 50 25 50 50 50 130 100 100 260 Shots Fired 2764 | 14 167 66 154 12 38 63 50 45 1 121 138 294 62 28 82 81 101 78 64 121 3 18 161 236 141 180 115 130 Gun 357 | 14 167 59 102 . 7 . . . . . . . . . . . 8 . . . . . . . . . . . Cannon 2352 | . . . 46 12 29 63 48 43 1 105 138 294 62 25 82 75 82 78 64 121 3 18 161 236 141 180 115 130 Launcher 50 | . . 2 6 . 2 . 2 2 . 16 . . . 3 . 6 11 . . . . . . . . . . . Special 5 | . . 5 . . . . . . . . . . . . . . . . . . . . . . . . . . Kinetic 288 | . 85 29 25 . . 30 24 17 . . . . . . . . . . . . . . . . . 18 30 30 Thermal 2328 | 7 82 35 111 12 36 31 24 22 1 85 138 294 62 25 82 75 82 78 64 121 3 18 161 236 126 162 85 70 Explosive 50 | . . 2 6 . 2 . 2 2 . 16 . . . 3 . 6 11 . . . . . . . . . . . Electromagnetic 98 | 7 . . 12 . . 2 . 4 . 20 . . . . . . 8 . . . . . . . 15 . . 30 Robot Hit Streak 41 | 3 13 7 10 6 6 11 13 17 . 16 12 41 21 4 26 19 13 14 20 18 9 10 25 21 21 37 20 18 Robot Miss Streak 15 | 2 2 2 5 2 3 7 6 2 . 8 3 2 1 2 2 3 2 2 2 2 . 1 2 3 3 4 15 11 Penetration Max 3 | . . . . . . . . . . . . . . . . . . . . . . . . . . 3 3 2 Secondary Targets 4 | . . 4 . . . . . . . . . . . . . . . . . . . . . . . . . . Max Gunslinging Chain 1 | . . 1 . . . . . . . . . . . . . . . . . . . . . . . . . . Capacitor 135 | . . . . . . . . . . . . . . . . . . . . . . . . . 135 . . . Shots Hit Robots 1642 | 8 114 35 97 7 23 35 31 24 . 50 46 172 29 8 52 64 60 56 44 45 3 9 109 140 89 117 80 95 Core Hits 1107 | 3 38 16 47 1 11 17 11 24 . 119 13 70 9 7 17 37 55 32 17 23 1 4 44 67 55 113 158 98 Critical Kills 61 | . . . 3 . . . . . . 1 . . . . . . . . . . . . . . . 13 23 21 Critical Parts Destroyed 74 | . . . . . . . . . . . . . . . . . . . . . . . . . . 15 44 15 Critical Strikes 155 | . 7 1 9 . 1 2 . . . 1 . . . . . . . . . . . . . . . 30 67 37 Burn 15 | . 7 1 6 . 1 . . . . . . . . . . . . . . . . . . . . . . . Meltdown 4 | . . . 3 . . . . . . 1 . . . . . . . . . . . . . . . . . . Destroy 133 | . . . . . . . . . . . . . . . . . . . . . . . . . . 30 67 36 Blast 3 | . . . . . . 2 . . . . . . . . . . . . . . . . . . . . . 1 Melee Attacks 6 | . . . . . . . . . . 5 . . . . . . . 1 . . . . . . . . . . Impact . | . . . . . . . . . . . . . . . . . . . . . . . . . . . . . Slashing 5 | . . . . . . . . . . 5 . . . . . . . . . . . . . . . . . . Piercing 1 | . . . . . . . . . . . . . . . . . . 1 . . . . . . . . . . Sneak Attacks . | . . . . . . . . . . . . . . . . . . . . . . . . . . . . . Combat Hostiles . | . . . . . . . . . . . . . . . . . . . . . . . . . . . . . Follow-up Attacks . | . . . . . . . . . . . . . . . . . . . . . . . . . . . . . Damage Inflicted 74807 | 103 1458 614 2123 140 445 994 1050 897 . 4372 2306 8170 1356 474 1714 3611 4441 3220 2013 2034 152 462 5427 7355 4799 4936 3182 6959 Guns 3235 | 103 1458 478 998 . 50 . . . . . . . . . . . 148 . . . . . . . . . . . Cannons 62846 | . . . 689 140 362 994 766 733 . 1500 2306 8170 1356 245 1714 2777 2349 2759 2013 2034 152 462 5303 6805 4358 4936 2964 6959 Explosions 8631 | . . 136 427 . 33 . 284 164 . 2830 . . . 229 . 834 1943 418 . . . . 124 550 441 . 218 . Melee 66 | . . . . . . . . . . 42 . . . . . . . 24 . . . . . . . . . . Ramming 29 | . . . 9 . . . . . . . . . . . . . 1 19 . . . . . . . . . . Kinetic 4884 | . 690 251 248 . . 484 431 220 . . . . . . . . . . . . . . . . . 287 663 1610 Thermal 59406 | 50 768 227 1215 140 412 454 335 485 . 1190 2306 8170 1356 245 1714 2777 2349 3177 2013 2034 152 462 5303 6805 3860 4649 2301 4457 Explosive 8110 | . . 136 390 . 33 . 284 164 . 2764 . . . 229 . 834 1943 . . . . . 124 550 441 . 218 . Electromagnetic 2312 | 53 . . 261 . . 56 . 28 . 376 . . . . . . 148 . . . . . . . 498 . . 892 Impact . | . . . . . . . . . . . . . . . . . . . . . . . . . . . . . Slashing 42 | . . . . . . . . . . 42 . . . . . . . . . . . . . . . . . . Piercing 24 | . . . . . . . . . . . . . . . . . . 24 . . . . . . . . . . Highest Corruption 37 | . . 7 . . 3 . . 2 2 . . 2 2 2 2 2 9 2 7 7 7 8 8 24 12 12 1 37 Average Corruption 4 | . . 7 . . 3 . . 1 2 . . 1 2 2 2 2 6 1 4 7 7 7 3 8 2 9 1 12 Corruption Purged 19 | . . . . . . . . . . . . . . . . . . . . . . . . 5 . 14 . . Corruption Blocked . | . . . . . . . . . . . . . . . . . . . . . . . . . . . . . Effects 535 | . . 4 . . 14 . . 21 . . . 12 33 25 25 25 26 5 64 58 25 36 22 62 10 29 1 38 Message Errors 113 | . . 1 . . 2 . . 7 . . . 4 6 5 7 8 6 2 12 5 6 9 7 7 3 8 1 7 Matter Fused 133 | . . 2 . . 4 . . 6 . . . 4 9 3 4 6 4 . 16 16 6 10 5 15 1 9 . 13 Heat Flow Errors 66 | . . . . . 2 . . 4 . . . 1 3 5 . 2 4 . 10 7 4 1 2 11 4 2 . 4 Energy Discharges 68 | . . . . . 2 . . . . . . 2 4 3 3 4 4 1 8 10 5 5 4 7 . 2 . 4 Parts Rejected 6 | . . . . . . . . . . . . . 1 . . 1 . 1 1 1 . . . . . 1 . . Parts Fused 11 | . . . . . . . . 1 . . . 1 1 . 1 . 1 . 1 1 . 2 . 2 . . . . Data Loss (minor) 53 | . . . . . 1 . . 2 . . . . 2 . 5 2 2 . 5 9 4 4 . 10 . 3 . 4 Data Loss (major) 31 | . . . . . 2 . . 1 . . . . 3 1 3 2 1 1 4 5 . 1 2 3 . . . 2 Misfires 29 | . . 1 . . . . . . . . . . 1 7 1 . 2 . 5 4 . 3 1 2 1 1 . . Alerts 11 | . . . . . 1 . . . . . . . 2 1 1 . 2 . 2 . . . . 1 . . . 1 Misdirections 3 | . . . . . . . . . . . . . . . . . . . . . . . . 1 1 1 . . Weapon Failures 11 | . . . . . . . . . . . . . 1 . . . . . . . . 1 1 3 . 2 . 3 Overload Shots 1 | . . . . . . . . . . . . . . . . . . . . . . . . . . . . 1 Overflow Damage 3556 | . . 13 6 . . 2 6 2 . 209 134 625 19 30 103 60 143 194 112 124 45 63 345 311 312 276 147 275 Projectiles 3064 | . . . 6 . . 2 2 2 . 153 134 625 19 2 103 60 84 24 112 124 45 63 318 274 312 276 49 275 Explosions 492 | . . 13 . . . . 4 . . 56 . . . 28 . . 59 170 . . . . 27 37 . . 98 . Melee . | . . . . . . . . . . . . . . . . . . . . . . . . . . . . . Knockbacks 67 | . . . . . . 3 . . . . . . . . . . . . . . . . . . . 11 26 27 Impact . | . . . . . . . . . . . . . . . . . . . . . . . . . . . . . Kinetic 65 | . . . . . . 3 . . . . . . . . . . . . . . . . . . . 10 26 26 Secondary 2 | . . . . . . . . . . . . . . . . . . . . . . . . . . 1 . 1 Self-Inflicted Damage 513 | . . . . . . . . . . . . . . . . 152 92 102 . . . . 50 . . . 117 . Shots 10 | . . . . . . . . . . . . . . . . 4 3 1 . . . . 1 . . . 1 . Rammed 11 | . . . 2 . . . . . . . . . . . . . 1 8 . . . . . . . . . . Targets Rammed 11 | . . . 2 . . . . . . . . . . . . . 1 8 . . . . . . . . . . Kicked . | . . . . . . . . . . . . . . . . . . . . . . . . . . . . . Crushed . | . . . . . . . . . . . . . . . . . . . . . . . . . . . . . Highest Temperature 474 | 60 168 136 336 18 270 186 321 277 42 153 2 222 264 337 . 198 224 2 211 244 251 190 302 474 411 213 252 212 Average Temperature 69 | 29 45 67 67 12 84 60 130 66 24 44 2 33 69 110 . 40 54 2 87 99 114 102 44 86 78 84 68 32 Received Heat Transfer 6244 | . 351 120 130 . 171 225 54 45 . 346 96 1045 102 . . 825 548 708 48 84 . . 49 232 94 180 287 504 Effects 11 | . . . . . 1 . 3 . . . . . . . . . . . . . . . . 6 1 . . . Shutdowns 3 | . . . . . . . . . . . . . . . . . . . . . . . . 2 1 . . . Energy Bleed 2 | . . . . . 1 . 1 . . . . . . . . . . . . . . . . . . . . . Interference 6 | . . . . . . . 2 . . . . . . . . . . . . . . . . 4 . . . . Siege Activations 5 | . . . . . . . . . . . . . . . . . . . . . . . . . . . . 5 Total Turns 100 | . . . . . . . . . . . . . . . . . . . . . . . . . . . . 100 Longest Duration 29 | . . . . . . . . . . . . . . . . . . . . . . . . . . . . 29 Robots Corrupted 10 | . . . . . . . . . . 2 . . . . . . 1 . . . . . . . 4 . . 3 Combat Hostiles 10 | . . . . . . . . . . 2 . . . . . . 1 . . . . . . . 4 . . 3 Parts Fried 12 | . . . . . . . . . . . . . . . . . . . . . . . . . 8 . . 4 Impact Corruptions 1 | . . . . . . . . . . . . . . . . . . . . . . . . . . . . 1 Robots Melted 12 | . . . 5 . . . 1 . . 1 . 1 . . 1 . . . 1 . . . 1 . . . . 1 Combat Hostiles 11 | . . . 5 . . . . . . 1 . 1 . . 1 . . . 1 . . . 1 . . . . 1 Parts Melted 42 | . 2 . 10 . 2 1 1 . . . 1 2 . 1 1 1 1 1 2 1 . . 7 5 1 2 . . Heat Transferred 39409 | 148 2775 740 3010 259 714 887 650 629 . 1173 1175 4475 725 150 1300 1550 1260 1675 1100 1125 75 225 2800 3625 2050 2578 1287 1249 Parts Sabotaged 5 | . . . . . . . . . . . . . . . . . . . . . . . . . . 1 . 4 Parts Stolen . | . . . . . . . . . . . . . . . . . . . . . . . . . . . . . Parts Stripped . | . . . . . . . . . . . . . . . . . . . . . . . . . . . . . Power Chain Reactions 2 | . . . 1 . . . . . . 1 . . . . . . . . . . . . . . . . . . Alert | -11 -10 -10 -9 -9 -8 -7 -7 -7 -7 -7 -6 -6 -6 -6 -6 -5 -5 -4 -4 -4 -4 -3 -3 -3 -2 -2 -1 -1 ------- Run | Yrd Mat Min Mat Min Mat Fac Low Low Zio Dee Pro Fac Low Low Dat Pro Fac Fac Upp Upp Zhi Pro Res Tes Res Qua Acc Com Peak Influence 1652 | 15 249 196 260 88 71 297 . . . . . 935 . . . . 435 467 . . . . 515 946 1240 1601 1652 1550 Initial 948 | . 9 96 1 82 . . . . . . . 322 . . . . 18 168 . . . . . 180 531 705 722 948 Average 367 | 3 112 73 85 21 15 79 . . . . . 574 . . . . 148 193 . . . . 268 379 710 1097 1082 1210 Maximum Alert Level 5 | . 1 . 1 . . 1 . . . . . 3 . . . . 2 2 . . . . 2 3 4 5 5 4 Low Security (%) 49 | 100 85 100 90 100 100 81 . . . . . 2 . . . . 64 69 . . . . 34 24 . . . . Level 1 16 | . 14 . 9 . . 18 . . . . . 14 . . . . 31 19 . . . . 61 41 15 . . . Level 2 14 | . . . . . . . . . . . . 60 . . . . 4 11 . . . . 4 14 47 . . . Level 3 13 | . . . . . . . . . . . . 23 . . . . . . . . . . . 19 26 63 57 42 Level 4 5 | . . . . . . . . . . . . . . . . . . . . . . . . . 11 31 33 57 Level 5 . | . . . . . . . . . . . . . . . . . . . . . . . . . . 4 9 . High Security . | . . . . . . . . . . . . . . . . . . . . . . . . . . . . . Max Security . | . . . . . . . . . . . . . . . . . . . . . . . . . . . . . Squads Dispatched 77 | . 2 . 1 . 4 6 . . . . . 11 . . . 1 6 8 . . . . 5 7 7 9 5 5 Investigation 10 | . 2 . . . 1 1 . . . . . 2 . . . . . . . . . . . 2 1 . . 1 Extermination 28 | . . . . . . 1 . . . . . 7 . . . . 2 3 . . . . 4 4 2 3 1 1 Reinforcement 17 | . . . 1 . 1 1 . . . . . 1 . . . . 3 5 . . . . 1 . . 2 1 1 Assault 18 | . . . . . 1 . . . . . . 1 . . . 1 1 . . . . . . 1 4 4 3 2 Garrison 4 | . . . . . 1 3 . . . . . . . . . . . . . . . . . . . . . . Intercept . | . . . . . . . . . . . . . . . . . . . . . . . . . . . . . Searches Triggered 1 | . . . . . . . . . . . . 1 . . . . . . . . . . . . . . . . Construction Impeded 1 | . . . . . . . . . . . . . . . . . 1 . . . . . . . . . . . Haulers Reinforced 2 | . . . . . . . . . . . . . . . . . 1 . . . . . 1 . . . . . Active Scanning Responses . | . . . . . . . . . . . . . . . . . . . . . . . . . . . . . Cargo Convoy Interrupts 3 | . . . . . . . . . . . . 1 . . . . 1 1 . . . . . . . . . . Stealth | -11 -10 -10 -9 -9 -8 -7 -7 -7 -7 -7 -6 -6 -6 -6 -6 -5 -5 -4 -4 -4 -4 -3 -3 -3 -2 -2 -1 -1 --------- Run | Yrd Mat Min Mat Min Mat Fac Low Low Zio Dee Pro Fac Low Low Dat Pro Fac Fac Upp Upp Zhi Pro Res Tes Res Qua Acc Com Distress Signals 19 | . 1 . 4 . 2 . . . . . 1 1 . . . . 2 3 . . . . . 2 1 1 1 . Communications Jammed 173 | . . . . . . . . . . . . . . . . . . . . . . . 2 35 4 58 69 5 Distress Signals 160 | . . . . . . . . . . . . . . . . . . . . . . . . 33 1 58 68 . Times Spotted 683 | . 27 11 37 . 6 18 8 11 . 53 12 68 4 4 4 26 40 42 12 14 . 1 38 47 43 56 58 43 Peak Tracking Total 37 | . 3 5 6 . 2 5 4 5 . 37 3 9 2 3 1 11 12 9 2 3 . 1 5 8 9 12 10 14 Tactical Retreats 48 | . 5 2 5 . . 3 1 . . 2 . 5 . . . 2 4 5 . 2 . . 1 2 4 1 2 2 Traps | -11 -10 -10 -9 -9 -8 -7 -7 -7 -7 -7 -6 -6 -6 -6 -6 -5 -5 -4 -4 -4 -4 -3 -3 -3 -2 -2 -1 -1 ------- Run | Yrd Mat Min Mat Min Mat Fac Low Low Zio Dee Pro Fac Low Low Dat Pro Fac Fac Upp Upp Zhi Pro Res Tes Res Qua Acc Com Traps Triggered 11 | . 1 . . . . 1 . . . . . 1 . 1 . . 2 . . . . . 2 3 . . . . Indirectly . | . . . . . . . . . . . . . . . . . . . . . . . . . . . . . Trap Hack Attempts . | . . . . . . . . . . . . . . . . . . . . . . . . . . . . . Triggered . | . . . . . . . . . . . . . . . . . . . . . . . . . . . . . Disarmed . | . . . . . . . . . . . . . . . . . . . . . . . . . . . . . Reprogrammed . | . . . . . . . . . . . . . . . . . . . . . . . . . . . . . Reused . | . . . . . . . . . . . . . . . . . . . . . . . . . . . . . Traps Extracted . | . . . . . . . . . . . . . . . . . . . . . . . . . . . . . Installed . | . . . . . . . . . . . . . . . . . . . . . . . . . . . . . Triggered 3 | . . . . . . . . . . . . 2 1 . . . . . . . . . . . . . . . Most Traps Carried 6 | . . . . . . . . . . . . . 6 6 6 6 6 . . . . . . . . . . . Machines | -11 -10 -10 -9 -9 -8 -7 -7 -7 -7 -7 -6 -6 -6 -6 -6 -5 -5 -4 -4 -4 -4 -3 -3 -3 -2 -2 -1 -1 ---------- Run | Yrd Mat Min Mat Min Mat Fac Low Low Zio Dee Pro Fac Low Low Dat Pro Fac Fac Upp Upp Zhi Pro Res Tes Res Qua Acc Com Machines Disabled 58 | . . . 3 . 2 . . 1 3 3 . 3 . . 1 . 4 1 . . . . 3 18 5 8 3 . Max in Single Turn 3 | . . . 1 . 1 . . 1 1 1 . 1 . . 1 . 2 1 . . . . 1 3 1 2 1 . Garrison Access 3 | . . . . . 1 . . . . . . 1 . . . . 1 . . . . . . . . . . . Machines Repaired . | . . . . . . . . . . . . . . . . . . . . . . . . . . . . . Machines Dismantled 3 | . . . . . . . . . 3 . . . . . . . . . . . . . . . . . . . Machines Sabotaged . | . . . . . . . . . . . . . . . . . . . . . . . . . . . . . Overloaded Fab Kills . | . . . . . . . . . . . . . . . . . . . . . . . . . . . . . Hacking | -11 -10 -10 -9 -9 -8 -7 -7 -7 -7 -7 -6 -6 -6 -6 -6 -5 -5 -4 -4 -4 -4 -3 -3 -3 -2 -2 -1 -1 --------- Run | Yrd Mat Min Mat Min Mat Fac Low Low Zio Dee Pro Fac Low Low Dat Pro Fac Fac Upp Upp Zhi Pro Res Tes Res Qua Acc Com Machines Accessed 76 | . 4 . 7 . 8 3 1 2 . . . 8 . 1 4 . 1 5 1 . 4 . 5 8 3 6 3 2 Terminals 48 | . 3 . 7 . 6 2 . . . . . 3 . . . . . 4 . . . . 4 6 3 6 2 2 Fabricators 5 | . . . . . . 1 . . . . . 2 . . . . . . . . . . . 2 . . . . Repair Stations 2 | . 1 . . . 1 . . . . . . . . . . . . . . . . . . . . . . . Recycling Units 1 | . . . . . . . . . . . . 1 . . . . . . . . . . . . . . . . Scanalyzers 2 | . . . . . 1 . . . . . . . . . . . . 1 . . . . . . . . . . Garrison Access 5 | . . . . . . . . . . . . 2 . . . . 1 . . . . . 1 . . . 1 . Total Hacks 212 | . 14 . 18 . 22 13 1 8 . . . 22 . 1 27 . 1 11 1 . 17 . 17 14 6 9 6 4 Successful 120 | . 7 . 8 . 6 9 1 8 . . . 10 . 1 27 . . 5 1 . 17 . 4 6 3 4 2 1 Failed 91 | . 6 . 10 . 16 4 . . . . . 12 . . . . 1 6 . . . . 13 8 3 5 4 3 Catastrophic 19 | . 2 . 1 . 3 1 . . . . . 5 . . . . 1 2 . . . . . 2 . 1 1 . Database Lockouts 1 | . 1 . . . . . . . . . . . . . . . . . . . . . . . . . . . Manual 68 | . 10 . 13 . 11 5 . . 1 . . 10 . . . . . 3 . . . . 5 3 3 3 1 . Terminals 122 | . 12 . 18 . 17 10 . . . . . 10 . . . . . 8 . . . . 15 9 6 9 4 4 Fabricators 13 | . . . . . . 3 . . . . . 5 . . . . . . . . . . . 5 . . . . Repair Stations 5 | . 2 . . . 3 . . . . . . . . . . . . . . . . . . . . . . . Recycling Units 3 | . . . . . . . . . . . . 3 . . . . . . . . . . . . . . . . Scanalyzers 5 | . . . . . 2 . . . . . . . . . . . . 3 . . . . . . . . . . Garrison Access 9 | . . . . . . . . . . . . 4 . . . . 1 . . . . . 2 . . . 2 . Terminal Hacks 96 | . 4 . 7 . 2 5 1 8 . . . 4 . 1 27 . . 3 1 . 17 . 4 2 3 4 2 1 Record 26 | . . . . . . 3 . 7 . . . . . . 11 . . . . . 5 . . . . . . . Part Schematic 16 | . 1 . 1 . . 1 . . . . . . . . 8 . . . . . 4 . 1 . . . . . Robot Schematic 6 | . . . 1 . . . . . . . . . . . 5 . . . . . . . . . . . . . Robot Analysis 5 | . 1 . . . . . . . . . . . . . . . . . . . 4 . . . . . . . Prototype ID Bank 7 | . . . . . . . . . . . . . . . 3 . . . . . 4 . . . . . . . Open Door 5 | . . . . . . . 1 1 . . . . . 1 . . . . 1 . . . . . . . . 1 Branch Access Points 7 | . 1 . 1 . 1 1 . . . . . . . . . . . 1 . . . . 1 . 1 . . . Emergency Access Points 3 | . . . . . . . . . . . . . . . . . . . . . . . . . 1 2 . . Machine Index 1 | . . . . . . . . . . . . . . . . . . . . . . . . . 1 . . . Terminal Index 2 | . . . . . . . . . . . . . . . . . . 1 . . . . . . . . 1 . Fabricator Index 1 | . . . . . . . . . . . . 1 . . . . . . . . . . . . . . . . Alert Level 3 | . . . 1 . . . . . . . . 1 . . . . . . . . . . . . . . 1 . Unreport Threat 5 | . . . 1 . . . . . . . . 1 . . . . . . . . . . 1 . . 2 . . Locate Traps 9 | . 1 . 2 . 1 . . . . . . 1 . . . . . 1 . . . . 1 2 . . . . Fabricator Hacks 8 | . . . . . . 2 . . . . . 3 . . . . . . . . . . . 3 . . . . Load Schematic 5 | . . . . . . 1 . . . . . 2 . . . . . . . . . . . 2 . . . . Build 3 | . . . . . . 1 . . . . . 1 . . . . . . . . . . . 1 . . . . Repair Station Hacks 4 | . 2 . . . 2 . . . . . . . . . . . . . . . . . . . . . . . Scan Component 2 | . 1 . . . 1 . . . . . . . . . . . . . . . . . . . . . . . Repair 2 | . 1 . . . 1 . . . . . . . . . . . . . . . . . . . . . . . Recycling Unit Hacks 1 | . . . . . . . . . . . . 1 . . . . . . . . . . . . . . . . Retrieve Components 1 | . . . . . . . . . . . . 1 . . . . . . . . . . . . . . . . Scanalyzer 4 | . . . . . 2 . . . . . . . . . . . . 2 . . . . . . . . . . Insert Component 2 | . . . . . 1 . . . . . . . . . . . . 1 . . . . . . . . . . Analyze 2 | . . . . . 1 . . . . . . . . . . . . 1 . . . . . . . . . . Garrison Access Hacks 1 | . . . . . . . . . . . . 1 . . . . . . . . . . . . . . . . Seal Access 1 | . . . . . . . . . . . . 1 . . . . . . . . . . . . . . . . Unauthorized Hacks 6 | . 1 . 1 . . 2 . . . . . 1 . . . . . . . . . . . 1 . . . . Terminals 5 | . 1 . 1 . . 2 . . . . . . . . . . . . . . . . . 1 . . . . Assimilate 1 | . . . . . . . . . . . . . . . . . . . . . . . . 1 . . . . Botnet 3 | . 1 . 1 . . 1 . . . . . . . . . . . . . . . . . . . . . . Operators 1 | . . . . . . 1 . . . . . . . . . . . . . . . . . . . . . . Fabricators 1 | . . . . . . . . . . . . 1 . . . . . . . . . . . . . . . . Recompile 1 | . . . . . . . . . . . . 1 . . . . . . . . . . . . . . . . Repair Stations . | . . . . . . . . . . . . . . . . . . . . . . . . . . . . . Recycling Units . | . . . . . . . . . . . . . . . . . . . . . . . . . . . . . Scanalyzers . | . . . . . . . . . . . . . . . . . . . . . . . . . . . . . Garrison Access . | . . . . . . . . . . . . . . . . . . . . . . . . . . . . . Data Cores Recovered 1 | . . . 1 . . . . . . . . . . . . . . . . . . . . . . . . . Used . | . . . . . . . . . . . . . . . . . . . . . . . . . . . . . Hacking Detections 60 | . 4 . 7 . 8 3 . . . . . 6 . . . . 1 4 . . . . 5 8 3 6 3 2 Full Trace Events 9 | . 1 . . . 2 1 . . . . . 1 . . . . . . . . . . . 2 1 . . 1 Feedback Events 1 | . . . . . . . . . . . . . . . . . . . . . . . . 1 . . . . Corruption 1 | . . . . . . . . . . . . . . . . . . . . . . . . 1 . . . . Feedback Blocked . | . . . . . . . . . . . . . . . . . . . . . . . . . . . . . Robot Schematics Acquired 10 | . . . 1 . . . . . 3 . . . . . 5 . . . . . . . . . . 1 . . Robots Built . | . . . . . . . . . . . . . . . . . . . . . . . . . . . . . Authchips . | . . . . . . . . . . . . . . . . . . . . . . . . . . . . . Time . | . . . . . . . . . . . . . . . . . . . . . . . . . . . . . Total Robot Build Rating . | . . . . . . . . . . . . . . . . . . . . . . . . . . . . . Part Schematics Acquired 33 | . 1 . 1 . . 1 . . 16 . . . . . 8 . . 1 . . 4 . 1 . . . . . Parts Built 5 | . . . . . . 2 . . . . . 1 . . . . . . . . . . . 2 . . . . Authchips 1 | . . . . . . . . . . . . 1 . . . . . . . . . . . . . . . . Time 114 | . . . . . . 31 . . . . . 25 . . . . . . . . . . . 58 . . . . Total Part Build Rating 19 | . . . . . . 4 . . . . . 1 . . . . . . . . . . . 14 . . . . Parts Repaired 2 | . 1 . . . 1 . . . . . . . . . . . . . . . . . . . . . . . Time 58 | . 26 . . . 32 . . . . . . . . . . . . . . . . . . . . . . . Parts Recycled . | . . . . . . . . . . . . . . . . . . . . . . . . . . . . . Recycled Matter . | . . . . . . . . . . . . . . . . . . . . . . . . . . . . . Retrieved Matter . | . . . . . . . . . . . . . . . . . . . . . . . . . . . . . Retrieved Components 10 | . . . . . . . . . . . . 10 . . . . . . . . . . . . . . . . Parts Scanalyzed 2 | . . . . . 1 . . . . . . . . . . . . 1 . . . . . . . . . . Part Schematics Acquired 1 | . . . . . . . . . . . . . . . . . . 1 . . . . . . . . . . Parts Damaged . | . . . . . . . . . . . . . . . . . . . . . . . . . . . . . Bothacking | -11 -10 -10 -9 -9 -8 -7 -7 -7 -7 -7 -6 -6 -6 -6 -6 -5 -5 -4 -4 -4 -4 -3 -3 -3 -2 -2 -1 -1 ------------ Run | Yrd Mat Min Mat Min Mat Fac Low Low Zio Dee Pro Fac Low Low Dat Pro Fac Fac Upp Upp Zhi Pro Res Tes Res Qua Acc Com Used RIF Installer . | . . . . . . . . . . . . . . . . . . . . . . . . . . . . . Robots Hacked . | . . . . . . . . . . . . . . . . . . . . . . . . . . . . . Non-combat . | . . . . . . . . . . . . . . . . . . . . . . . . . . . . . Combat . | . . . . . . . . . . . . . . . . . . . . . . . . . . . . . Robot Hacks Applied . | . . . . . . . . . . . . . . . . . . . . . . . . . . . . . Relay Couplers Released 3 | . . . . . 1 . . . . . . . . . . . 2 . . . . . . . . . . . Machine Destruction 3 | . . . . . 1 . . . . . . . . . . . 2 . . . . . . . . . . . Fabnet Peak Effective % . | . . . . . . . . . . . . . . . . . . . . . . . . . . . . . Robots Rewired 2 | . . . . . . . . . . . . . . . . 2 . . . . . . . . . . . . Allies Hacked . | . . . . . . . . . . . . . . . . . . . . . . . . . . . . . Hacks Repelled . | . . . . . . . . . . . . . . . . . . . . . . . . . . . . . Allies | -11 -10 -10 -9 -9 -8 -7 -7 -7 -7 -7 -6 -6 -6 -6 -6 -5 -5 -4 -4 -4 -4 -3 -3 -3 -2 -2 -1 -1 -------- Run | Yrd Mat Min Mat Min Mat Fac Low Low Zio Dee Pro Fac Low Low Dat Pro Fac Fac Upp Upp Zhi Pro Res Tes Res Qua Acc Com Total Allies 10 | . . . . 4 . . . . 2 . . . . . . 2 1 . . . . . . 1 . . . . Largest Group 4 | . . . . 4 3 . . . 2 2 . . . . . 2 1 . . . . . . 1 . . . . Highest-Rated Group 192 | . . . . 71 40 . . . 192 192 . . . . . 59 30 . . . . . . 10 . . . . Highest-Rated Ally 96 | . . . . 31 16 . . . 96 96 . . . . . 30 30 . . . . . . 10 . . . . Total Orders 20 | . . . . . . . . . . . . 9 . . . . 3 . . . . . . . . 8 . . STAY 1 | . . . . . . . . . . . . . . . . . . . . . . . . . . 1 . . ROAM 1 | . . . . . . . . . . . . 1 . . . . . . . . . . . . . . . . FOLLOW 1 | . . . . . . . . . . . . 1 . . . . . . . . . . . . . . . . EXPLORE 7 | . . . . . . . . . . . . 1 . . . . . . . . . . . . . 6 . . RETURN 10 | . . . . . . . . . . . . 6 . . . . 3 . . . . . . . . 1 . . Ally Attacks 98 | . . . . . 30 . . . . 39 . . . . . 21 8 . . . . . . . . . . . Total Damage 2348 | . . . . . 332 . . . . 1498 . . . . . 280 238 . . . . . . . . . . . Kills 12 | . . . . . 2 . . . . 8 . . . . . 1 1 . . . . . . . . . . . Allies Corrupted 1 | . . . . . . . . . . . . . . . . . . . . . . . . . . 1 . . Allies Melted . | . . . . . . . . . . . . . . . . . . . . . . . . . . . . . Intel | -11 -10 -10 -9 -9 -8 -7 -7 -7 -7 -7 -6 -6 -6 -6 -6 -5 -5 -4 -4 -4 -4 -3 -3 -3 -2 -2 -1 -1 ------- Run | Yrd Mat Min Mat Min Mat Fac Low Low Zio Dee Pro Fac Low Low Dat Pro Fac Fac Upp Upp Zhi Pro Res Tes Res Qua Acc Com Robot Analysis Total 5 | . 1 . . . . . . . . . . . . . . . . . . . 4 . . . . . . . Derelict Logs Recovered 15 | . . . . 1 . . 1 2 1 . 2 . 2 1 . 1 . . 2 2 . . . . . . . . Drone Launches 16 | . . . . . . . . . . . . 6 . . . . 3 . . . . . . . . 7 . . Drone Recoveries 13 | . . . . . . . . . . . . 5 . . . . 3 . . . . . . . . 5 . . Exploration | -11 -10 -10 -9 -9 -8 -7 -7 -7 -7 -7 -6 -6 -6 -6 -6 -5 -5 -4 -4 -4 -4 -3 -3 -3 -2 -2 -1 -1 ------------- Run | Yrd Mat Min Mat Min Mat Fac Low Low Zio Dee Pro Fac Low Low Dat Pro Fac Fac Upp Upp Zhi Pro Res Tes Res Qua Acc Com Turns Passed 59439 | 119 1165 956 2527 1560 2405 943 2555 2445 3705 7009 4051 3954 2698 2318 1950 1658 1486 1273 2366 2056 895 1019 1816 2067 1098 1431 820 1094 Spaces Moved 23200 | 53 331 350 866 639 909 436 964 980 1572 3014 1710 1599 1094 1178 304 496 616 511 755 818 158 492 699 837 501 558 337 423 Core 390 | 6 . . . . . . . . . . . . . . . . 185 190 4 . . . . . . . . 5 Treads 8679 | 47 331 315 622 639 909 436 964 980 1572 1720 . . . . . . . 134 . . . . . . . . . 10 Legs 14039 | . . . 187 . . . . . . 1294 1710 1599 1094 1178 304 496 431 187 751 818 158 492 699 837 501 558 337 408 Wheels 92 | . . 35 57 . . . . . . . . . . . . . . . . . . . . . . . . . Hover . | . . . . . . . . . . . . . . . . . . . . . . . . . . . . . Flight . | . . . . . . . . . . . . . . . . . . . . . . . . . . . . . Fastest Speed 50 | 50 160 140 140 240 238 158 238 238 158 155 180 180 185 185 185 183 50 50 100 180 180 180 180 125 133 132 124 50 Average Speed 196 | 152 238 230 240 240 240 170 238 238 228 193 185 193 185 185 185 184 160 157 179 180 180 180 206 175 144 157 155 145 Slowest Speed 270 | 160 240 240 270 240 243 238 238 238 238 238 260 210 185 185 185 210 210 250 180 180 180 180 210 222 170 210 187 260 Overloaded Moves . | . . . . . . . . . . . . . . . . . . . . . . . . . . . . . Propulsion Burnouts . | . . . . . . . . . . . . . . . . . . . . . . . . . . . . . Robots Hopped . | . . . . . . . . . . . . . . . . . . . . . . . . . . . . . Cave-ins Triggered 2 | . . . . . . . . . . . . . . . . . . . . . . . . . 2 . . . Teleports 1 | . . . . . . . . . . . . . . . . . . . . . . . . . . 1 . . Exploration Rate (%) 60 | 4 50 59 72 99 59 10 97 95 85 94 99 42 96 95 81 64 21 14 83 79 61 61 20 86 15 83 16 17 Regions Visited 28 Branch Regions 18 Pre-discovered Areas 7 | . . . . . . . 1 2 . . . . . . 1 . . . . . 3 . . . . . . . Known Exits Taken 9 | . 1 . 1 . . 1 . . . . . 1 1 . . 1 . 1 . . . . 1 . 1 . . . Unknown Exits Taken 19 | 1 . 1 . 1 1 . 1 1 1 1 1 . . 1 1 . 1 . 1 1 1 1 . 1 . 1 1 . Scrap Searched 30 | . . . . 3 . . 3 5 1 . 3 . 1 3 . 1 . . 1 5 . 4 . . . . . . Spaces Dug 289 | . . 21 7 . 5 1 . . . 17 34 44 14 6 1 13 6 3 2 18 . 3 12 28 15 19 10 10 Terrain Destroyed 1046 | . . 24 44 . 13 5 13 5 . 47 90 99 30 40 2 39 100 37 20 75 . 9 45 97 52 61 76 23 Melee . | . . . . . . . . . . . . . . . . . . . . . . . . . . . . . Projectile 662 | . . 5 . . . 5 9 5 . 13 90 99 30 19 2 12 23 19 20 75 . 9 38 63 34 48 23 21 AOE 337 | . . 19 44 . 13 . 4 . . 34 . . . 21 . 27 77 18 . . . . 7 34 18 . 21 . Terrain Rammed . | . . . . . . . . . . . . . . . . . . . . . . . . . . . . . Walls Destroyed . | . . . . . . . . . . . . . . . . . . . . . . . . . . . . . Machines Disabled . | . . . . . . . . . . . . . . . . . . . . . . . . . . . . . Actions | -11 -10 -10 -9 -9 -8 -7 -7 -7 -7 -7 -6 -6 -6 -6 -6 -5 -5 -4 -4 -4 -4 -3 -3 -3 -2 -2 -1 -1 --------- Run | Yrd Mat Min Mat Min Mat Fac Low Low Zio Dee Pro Fac Low Low Dat Pro Fac Fac Upp Upp Zhi Pro Res Tes Res Qua Acc Com Total 34321 | 74 538 423 1159 655 1103 571 1178 1043 1635 4085 2451 2159 1711 1300 1621 1159 1020 902 1711 1287 769 611 917 1204 876 911 494 754 Wait 7846 | 2 100 27 89 8 102 68 160 21 19 809 653 269 569 88 1214 556 213 292 906 390 589 101 60 115 171 147 29 79 Move 23171 | 52 330 349 865 638 908 435 963 979 1571 3013 1709 1598 1093 1177 303 495 615 510 754 817 157 491 698 836 499 557 336 423 Hop . | . . . . . . . . . . . . . . . . . . . . . . . . . . . . . Pick Up 286 | 6 11 . 35 1 12 4 6 3 3 36 4 20 4 4 5 7 32 15 3 6 3 7 8 17 13 7 4 10 Fast Attach 246 | 7 2 . 6 . 14 4 . . 4 31 2 13 2 4 8 7 13 9 3 4 5 . 18 33 6 23 5 23 Attach 114 | . 2 5 6 . 3 . . 3 1 15 . 3 1 2 1 2 17 4 . . . . 2 6 2 5 8 26 Detach 69 | . 1 . . . 1 . . . 1 9 . 1 1 2 1 1 6 2 1 . 2 . 1 6 1 8 6 18 Swap 300 | . 5 6 37 1 13 19 16 12 1 28 . 42 . 1 6 5 17 . 1 . . 1 11 12 19 16 9 22 Drop 558 | . 2 . 38 1 30 8 7 1 7 71 14 39 10 10 31 17 39 13 12 9 10 3 35 49 25 30 15 32 Fire 1668 | 7 85 36 81 6 20 33 26 24 1 68 69 174 31 12 52 51 67 48 31 61 3 8 84 130 139 118 82 121 Melee 6 | . . . . . . . . . . 5 . . . . . . . 1 . . . . . . . . . . Ram 6 | . . . . . . . . . . . . . . . . . . 6 . . . . . . . . . . Kick . | . . . . . . . . . . . . . . . . . . . . . . . . . . . . . Crush 5 | . . . 2 . . . . . . . . . . . . . 1 2 . . . . . . . . . . Escape Stasis 1 | . . . . . . . . . . . . . . . . . . . . . . . . . 1 . . . Rewire 18 | . . . . . . . . . . . . . . . . 18 . . . . . . . . . . . . Trap . | . . . . . . . . . . . . . . . . . . . . . . . . . . . . . Miscellaneous 27 | . . . . . . . . . 27 . . . . . . . . . . . . . . . . . . . Route ------- -11/Scrapyard -10/Materials (discovered 2 exits: *Min x2) -10/Mines -9/Materials (discovered 3 exits: *Mat x2 / *Min) -9/Mines (discovered 3 exits: *Mat x2 / *Zio) -8/Materials -7/Factory (discovered 3 exits: Sto / *Low x2) -7/Lower Caves -7/Lower Caves (discovered 2 exits: *Fac / *Zio) -7/Zion (discovered 2 exits: [*Dee] / [*Pro]) -7/Deep Caves -6/Proximity Caves -6/Factory (discovered 2 exits: *Fac / *Low) -6/Lower Caves -6/Lower Caves (discovered 2 exits: *Fac / *Dat) -6/Data Miner -5/Proximity Caves -5/Factory -4/Factory (discovered 4 exits: *Res / *Upp x2 / Arm) -4/Upper Caves -4/Upper Caves (discovered 2 exits: *Res / *Zhi) -4/Zhirov -3/Proximity Caves -3/Research (discovered 2 exits: *Tes x2) -3/Testing -2/Research (discovered 2 exits: *Qua x2) -2/Quarantine -1/Access -1/Command History --------- Turn | Location | Event 12 | -11/Scrapyard | Discovered new exit (range 14) 120 | -11/Scrapyard | Entered Materials 165 | -10/Materials | Central database locked down 337 | -10/Materials | Build established: Mutant 523 | -10/Materials | Identified exit to Mines 1164 | -10/Materials | Core integrity fell below 50% 1250 | -10/Materials | Repaired Assault Rifle 1285 | -10/Materials | Entered Mines 1318 | -10/Mines | Met a Derelict bent on vengeance 1898 | -10/Mines | Discovered new exit (range 10) 1995 | -10/Mines | Assembled infested the area 2145 | -10/Mines | Core integrity fell below 20% 2191 | -10/Mines | Lost 5 parts (2p2n1u) 2241 | -10/Mines | Entered Materials 2241 | -9/Materials | Evolved 2 slots: Utility x2 2549 | -9/Materials | Identified exit to Mines 2858 | -9/Materials | Discovered new exit (range 15) 4358 | -9/Materials | Discovered new exit (range 16) 4768 | -9/Materials | Entered Mines 4771 | -9/Mines | Assisted by bots powering up and referring to "LRC-V3" 4822 | -9/Mines | Received a Mining Laser from a helpful Derelict 4961 | -9/Mines | A Derelict revealed a hidden shortcut to a safe place 4996 | -9/Mines | A weapon hastily lodged in a ceiling crevice suddenly fell to the ground 5021 | -9/Mines | Learned Materials security intel 5310 | -9/Mines | Discovered new exit (range 13) 5578 | -9/Mines | Found DCF Scrap (12 items) 5604 | -9/Mines | Received a Rocket Launcher from a helpful Derelict 6003 | -9/Mines | Discovered new exit (range 7) 6328 | -9/Mines | Entered Materials 6328 | -8/Materials | Accompanied by 3 allies 6328 | -8/Materials | Evolved 2 slots: Propulsion x1, Utility x1 6357 | -8/Materials | Garrison activated, responded to threat 6969 | -8/Materials | Discovered new exit (range 9) 7086 | -8/Materials | Met 7R-MNS 7094 | -8/Materials | Attacked by 7R-MNS 7102 | -8/Materials | 7R-MNS lamented failing the tripod run 7102 | -8/Materials | Destroyed 7R-MNS 8473 | -8/Materials | Repaired Cooling System 8733 | -8/Materials | Entered Factory 8733 | -7/Factory | Evolved 2 slots: Power x1, Propulsion x1 8815 | -7/Factory | Discovered new exit (range 4) 8948 | -7/Factory | Identified exit to Storage 8948 | -7/Factory | Identified exit to Lower Caves 9262 | -7/Factory | Garrison activated, responded to threat 9274 | -7/Factory | Fabricated Plasma Cutter? 9676 | -7/Factory | Entered Lower Caves 9679 | -7/Lower Caves | Learned location of Extension (-5) 9686 | -7/Lower Caves | Attracted the attention of an 0b10 checkpoint 10623 | -7/Lower Caves | Encountered a Warlord checkpoint 11820 | -7/Lower Caves | Discovered new exit (range 16) 12231 | -7/Lower Caves | Entered another Lower Caves area 12276 | -7/Lower Caves | Discovered new exit (range 14) 12581 | -7/Lower Caves | Learned Factory terminal intel 12581 | -7/Lower Caves | Learned Research garrison access intel 12581 | -7/Lower Caves | Learned Extension garrison access intel 12804 | -7/Lower Caves | Learned location of Zion (-7) 13100 | -7/Lower Caves | Acquired the password to a Derelict Tinkerer's latest research 13249 | -7/Lower Caves | Caught by Unaware searching for contraband prototypes 13281 | -7/Lower Caves | Caught by Unaware searching for contraband prototypes 14050 | -7/Lower Caves | Encountered a Warlord checkpoint 14547 | -7/Lower Caves | Discovered new exit (range 13) 14676 | -7/Lower Caves | Entered Zion 14758 | -7/Zion | System corruption cleaned by Quarantine Array 14809 | -7/Zion | Given the Hacking Drone Bay 14881 | -7/Zion | Discovered new exit (range 14) 15323 | -7/Zion | Learned Factory security intel 15888 | -7/Zion | Discovered new exit (range 5) 15891 | -7/Zion | Saw the warning signs outside the Deep Caves entrance 16014 | -7/Zion | Given A8's code to call for help 16513 | -7/Zion | Learned Factory emergency access door positions 17178 | -7/Zion | Found Prototype Device 17178 | -7/Zion | Identified Hacking Drone Bay 17903 | -7/Zion | Enhanced Grunt warped into view, answering call for help 17905 | -7/Zion | Enhanced Grunt warped into view, answering call for help 18381 | -7/Zion | Entered Deep Caves 18381 | -7/Deep Caves | Accompanied by 2 allies 18788 | -7/Deep Caves | Attacked by Z-Imprinter 18795 | -7/Deep Caves | Destroyed Z-Imprinter 19010 | -7/Deep Caves | Found Prototype Device 19010 | -7/Deep Caves | Identified Zio. Metafield Generator 19046 | -7/Deep Caves | Found Prototype Protection 19046 | -7/Deep Caves | Identified Zio. Weapon Casing 19091 | -7/Deep Caves | Found Zio. Weapon Casing 19310 | -7/Deep Caves | Z-Facility disabled 19348 | -7/Deep Caves | Lost 4 parts (1p1n1u1w) 19478 | -7/Deep Caves | Found Prototype Protection 19478 | -7/Deep Caves | Identified Zio. Heavy Carapace 19916 | -7/Deep Caves | Found Prototype Device 19916 | -7/Deep Caves | Identified Exp. Thermal Shield 20019 | -7/Deep Caves | Discovered new exit (range 10) 20965 | -7/Deep Caves | Found Zio. Weapon Casing 20997 | -7/Deep Caves | Found Zio. Weapon Casing 21175 | -7/Deep Caves | Found Zio. Heavy Carapace 21419 | -7/Deep Caves | Spotted AG-79167 21450 | -7/Deep Caves | Destroyed AG-79167 21454 | -7/Deep Caves | Found GOLEM Unit 21830 | -7/Deep Caves | Spotted AG-70632 21871 | -7/Deep Caves | Destroyed AG-70632 21898 | -7/Deep Caves | Lost 3 parts (1p2u) 23179 | -7/Deep Caves | Triggered Deep Caves wall 23183 | -7/Deep Caves | Core integrity fell below 50% 23185 | -7/Deep Caves | Spotted AS-49841 23190 | -7/Deep Caves | Spotted AS-53608 23192 | -7/Deep Caves | Destroyed AS-53608 23195 | -7/Deep Caves | Destroyed AS-49841 23228 | -7/Deep Caves | Destroyed 36 combat bots 23396 | -7/Deep Caves | Exposed GOLEM chamber 23401 | -7/Deep Caves | Found GOLEM Unit 23406 | -7/Deep Caves | Found GOLEM Unit 23412 | -7/Deep Caves | Found GOLEM Unit 23486 | -7/Deep Caves | Found GOLEM Unit 23692 | -7/Deep Caves | Build established: Golem 25390 | -7/Deep Caves | Entered Proximity Caves 25396 | -6/Proximity Caves | Learned location of 1 exit from Factory 25502 | -6/Proximity Caves | Spotter reported a threat 25602 | -6/Proximity Caves | Spotter reported a threat 26168 | -6/Proximity Caves | Found DCF Scrap (12 items) 26267 | -6/Proximity Caves | Spotted B-75 Beast 26909 | -6/Proximity Caves | Destroyed B-75 Beast 27336 | -6/Proximity Caves | Learned 12 Factory zone layouts 28308 | -6/Proximity Caves | Discovered new exit (range 9) 29441 | -6/Proximity Caves | Entered Factory 29441 | -6/Factory | Evolved 2 slots: Utility x2 29442 | -6/Factory | Identified exit to Lower Caves 29446 | -6/Factory | Loaded intel: 25 terminal locations 29791 | -6/Factory | Search patrols dispatched 30318 | -6/Factory | Destroyed 8 combat bots 30669 | -6/Factory | Destroyed 8 combat bots 30904 | -6/Factory | Discovered new exit (range 11) 31219 | -6/Factory | Cargo convoy interrupted 31541 | -6/Factory | First assault squad dispatched 32440 | -6/Factory | Fabricated Huge Storage Unit (x1) 33395 | -6/Factory | Entered Lower Caves 34537 | -6/Lower Caves | Spotted B-75 Beast 34618 | -6/Lower Caves | Destroyed B-75 Beast 34704 | -6/Lower Caves | Encountered a Warlord checkpoint 34775 | -6/Lower Caves | Identified exit to Lower Caves 35163 | -6/Lower Caves | Attracted the attention of an 0b10 checkpoint 36093 | -6/Lower Caves | Entered another Lower Caves area 36097 | -6/Lower Caves | Identified exit to Factory 37881 | -6/Lower Caves | Discovered new exit (range 10) 38411 | -6/Lower Caves | Entered Data Miner 38412 | -6/Data Miner | Discovered new exit (range 6) 38448 | -6/Data Miner | Met Data Miner 38483 | -6/Data Miner | Learned location of Section 7 (-2) 38483 | -6/Data Miner | Acquired the access code to Warlord's prototype stash 38516 | -6/Data Miner | Received God Mode back door access code from Data Miner 39246 | -6/Data Miner | Data Conduit disabled 39729 | -6/Data Miner | Core integrity fell below 50% 39748 | -6/Data Miner | Found Exp. Thermal Shield 40306 | -6/Data Miner | Found Exp. Thermal Shield 40361 | -6/Data Miner | Entered Proximity Caves 40766 | -5/Proximity Caves | Spotted B-75 Beast 40789 | -5/Proximity Caves | Destroyed B-75 Beast 40978 | -5/Proximity Caves | Attracted the attention of an 0b10 outpost 41063 | -5/Proximity Caves | Core integrity fell below 20% 41088 | -5/Proximity Caves | Destroyed 15 combat bots 42019 | -5/Proximity Caves | Entered Factory 42019 | -5/Factory | Accompanied by 1 ally 42019 | -5/Factory | Evolved 2 slots: Utility x2 42263 | -5/Factory | Spotted B-75 Beast 42286 | -5/Factory | Destroyed B-75 Beast 42367 | -5/Factory | Found Mni. Smartbomb Launcher 43078 | -5/Factory | Cargo convoy interrupted 43131 | -5/Factory | Destroyed 7 combat bots 43154 | -5/Factory | Core integrity fell below 50% 43183 | -5/Factory | Lost 11 parts (2p2n4u3w) 43235 | -5/Factory | Lost 3 parts (2n1u) 43487 | -5/Factory | Core integrity fell below 20% 43492 | -5/Factory | Discovered new exit (range 19) 43505 | -5/Factory | Entered another Factory area 43505 | -4/Factory | Evolved 2 slots: Utility x2 43506 | -4/Factory | Identified exit to Armory 44200 | -4/Factory | Discovered new exit (range 3) 44568 | -4/Factory | Lost 3 parts (2u1w) 44580 | -4/Factory | Destroyed 8 combat bots 44586 | -4/Factory | Cargo convoy interrupted 44671 | -4/Factory | Lost 8 parts (1p4n2u1w) 44688 | -4/Factory | Identified exit to Upper Caves 44778 | -4/Factory | Entered Upper Caves 45228 | -4/Upper Caves | Build established: Hacker-Golem 45427 | -4/Upper Caves | Learned 4 Research zone layouts 46095 | -4/Upper Caves | Spotted B-86 Titan 46323 | -4/Upper Caves | Attracted the attention of an 0b10 outpost 46667 | -4/Upper Caves | Discovered new exit (range 13) 46764 | -4/Upper Caves | Learned Research stockpile data 47144 | -4/Upper Caves | Entered another Upper Caves area 47145 | -4/Upper Caves | Encountered a Warlord checkpoint 47229 | -4/Upper Caves | Discovered new exit (range 12) 47682 | -4/Upper Caves | Learned Research terminal intel 47883 | -4/Upper Caves | Spotted B-86 Titan 48888 | -4/Upper Caves | Learned Research stockpile data 48986 | -4/Upper Caves | Discovered new exit (range 8) 49200 | -4/Upper Caves | Entered Zhirov 49200 | -4/Zhirov | Discovered new exit (range 3) 49234 | -4/Zhirov | Met Zhirov 49275 | -4/Zhirov | Learned location of Quarantine (-2) 49275 | -4/Zhirov | Learned location of Testing (-3) 49275 | -4/Zhirov | Learned location of Command (-1) 49286 | -4/Zhirov | Zhirov requested help retrieving the SGEMP Prototype 49314 | -4/Zhirov | Found Alien Artifact 49314 | -4/Zhirov | Identified Integrated Reactor 49314 | -4/Zhirov | Installed Integrated Reactor, increased core energy generation (+10) 49338 | -4/Zhirov | Found Alien Artifact 50095 | -4/Zhirov | Entered Proximity Caves 50438 | -3/Proximity Caves | Build established: Golem 50505 | -3/Proximity Caves | Spotted B-86 Titan 50929 | -3/Proximity Caves | Discovered new exit (range 8) 51114 | -3/Proximity Caves | Entered Research 51114 | -3/Research | Evolved 2 slots: Power x2 51117 | -3/Research | Loaded intel: 23 terminal locations 51118 | -3/Research | Loaded intel: 4 garrison access locations 51444 | -3/Research | Build established: Generator-Golem 51854 | -3/Research | Identified exit to Testing 52930 | -3/Research | Entered Testing 53149 | -3/Testing | Found Prototype Processor 53149 | -3/Testing | Identified Exp. Targeting Computer 53153 | -3/Testing | Found Exp. Targeting Computer 53209 | -3/Testing | Spotted PX-4Z5543SRVN 53235 | -3/Testing | Destroyed PX-4Z5543SRVN 53264 | -3/Testing | Found Prototype Device 53264 | -3/Testing | Identified Exp. Transmission Jammer 53337 | -3/Testing | Found Adv. Powered Armor 53365 | -3/Testing | Found Prototype Leg 53365 | -3/Testing | Identified Myomer Exoskeleton 53457 | -3/Testing | Found Prototype Launcher 53550 | -3/Testing | Spotted PD-TXB5NC7127 53673 | -3/Testing | Build established: Generator-Mutant 53673 | -3/Testing | Found Prototype Energy Cannon 53673 | -3/Testing | Identified Null Cannon 54036 | -3/Testing | Fabricated Quantum Capacitor? 54094 | -3/Testing | Discovered new exit (range 14) 54170 | -3/Testing | Found Prototype Ballistic Cannon 54477 | -3/Testing | System corruption reached 10% 54616 | -3/Testing | Found Prototype Hackware 54616 | -3/Testing | Identified Exp. Hacking Suite 54693 | -3/Testing | Identified Perforator 54696 | -3/Testing | Found Prototype Ballistic Cannon 54696 | -3/Testing | Identified Omega Cannon 54969 | -3/Testing | First assault squad dispatched 54997 | -3/Testing | Entered Research 54997 | -2/Research | Evolved 2 slots: Propulsion x1, Utility x1 55747 | -2/Research | First assault squad dispatched 55817 | -2/Research | Found Prototype Device 55817 | -2/Research | Identified Exp. Shock Absorption System 55839 | -2/Research | Identified exit to Quarantine 56078 | -2/Research | Crushed by falling debris 56080 | -2/Research | Crushed by falling debris 56080 | -2/Research | System corruption reached 10% 56095 | -2/Research | Entered Quarantine 56111 | -2/Quarantine | Lost 3 parts (1p2u) 56345 | -2/Quarantine | First assault squad dispatched 56365 | -2/Quarantine | Found Alien Artifact 56365 | -2/Quarantine | Identified Phase Redirector 56569 | -2/Quarantine | Found Alien Artifact 56569 | -2/Quarantine | Identified Transdimensional Reconstructor (x2) 56569 | -2/Quarantine | Warped through subspace 56597 | -2/Quarantine | Found Prototype Device 56597 | -2/Quarantine | Identified System Purifier 56600 | -2/Quarantine | Found System Purifier 56604 | -2/Quarantine | Found System Purifier 56674 | -2/Quarantine | Found Alien Artifact 57166 | -2/Quarantine | Scanned by Researcher 57237 | -2/Quarantine | Lost 3 parts (1p1n1u) 57244 | -2/Quarantine | Destroyed 14 combat bots 57269 | -2/Quarantine | Discovered new exit (range 15) 57526 | -2/Quarantine | Entered Access 57526 | -1/Access | Evolved 2 slots: Propulsion x2 57776 | -1/Access | First assault squad dispatched 58044 | -1/Access | Destroyed 8 combat bots 58214 | -1/Access | Destroyed 7 combat bots 58215 | -1/Access | Lost 5 parts (2p3u) 58296 | -1/Access | Spotted B-99 Colossus 58321 | -1/Access | Spotted B-99 Colossus 58326 | -1/Access | Spotted B-99 Colossus 58340 | -1/Access | Discovered new exit (range 4) 58346 | -1/Access | Entered Command 58370 | -1/Command | Lost 5 parts (2n3u) 58865 | -1/Command | System corruption reached 10% 58962 | -1/Command | Destroyed 7 combat bots 59068 | -1/Command | Spotted Combat Programmer 59068 | -1/Command | Spotted Combat Programmer 59084 | -1/Command | Spotted M Guard 59086 | -1/Command | Spotted M Guard 59088 | -1/Command | Destroyed Combat Programmer 59096 | -1/Command | First assault squad dispatched 59098 | -1/Command | Destroyed Combat Programmer 59123 | -1/Command | Destroyed M Guard 59137 | -1/Command | Destroyed M Guard 59137 | -1/Command | All MAIN.C guards destroyed 59152 | -1/Command | Found Corrupted Prototype Reactor 59258 | -1/Command | Destroyed 9 combat bots 59291 | -1/Command | Identified Subatomic Replicator 59291 | -1/Command | Used Subatomic Replicator to replicate Null Cannon 59316 | -1/Command | Met MAIN.C 59321 | -1/Command | 0b10 Conduit disabled 59358 | -1/Command | System corruption reached 30% 59365 | -1/Command | Destroyed MAIN.C Shell 59367 | -1/Command | MAIN.C activated Command garrisons 59423 | -1/Command | Core integrity fell below 50% 59436 | -1/Command | Core integrity fell below 20% 59440 | -1/Command | Destroyed by G-73 Enforcer with Phase Gun Last Messages --------------- 59414_ 0b10 Conduit collapses. 59416_ Myomer Leg destroyed. 59417_ 0b10 Conduit collapses. 59422_ Adv. Heat Sink destroyed. 59425_ Lgt. Quantum Reactor destroyed. 59425_ Asb. Biocell Array destroyed. 59427_ HV Slug penetrates Heavy Barrier. 59429_ C-30 ARC bursts open, deploying its payload. 59429_ G-73 Enforcer unfolds itself. 59430_ HV Slug penetrates Heavy Barrier. 59432_ Perforator destroyed. 59434_ System corrupted: Matter fused (-10). 59434_ System corrupted: Null Cannon failed to cycle. 59435_ Null Cannon destroyed. 59435_ Hdn. Centrium Leg destroyed. 59438_ Asb. Combat Suite destroyed. 59438_ Asb. Nanovents destroyed. 59439_ Exp. Transmission Jammer destroyed. 59439_ Acquired 12 matter. 59440_ 0b10 Conduit collapses. Map ----- +----------------------------------------------------+ | ?????????????????????????????????????????????????? | | ?????????????????????????????????????????????????? | | ?????????????????????????????????????????????????? | | ?????????????????????????????????????????????????? | | ?????????????????????????????????????????????????? | | ?????????????????????????????????????????????????? | | ?????????????????????????????????????????????????? | | ?????????????????????????????????????????????????? | | ?????????????????????????????????????????????????? | | ??????????????????????????????????#############??? | | ??????????????????????????????????"""" #??? | | ??????????????????????????????????"" #??? | | ??????????????????????????????????"" #### | | ????????????????????????????""???""" / | | ???????????????????????????? "???""" / | | ?????????????????????????"" """""" / | | ?????????????????????????"" """""" #### | | ????????????????????????# " """""" % % #??? | | ????????????????????????# " % #??? | | ????????????????????????# " %% % % % %#??? | | ????????????????????????#""""""" "% p %#??? | | ????????????????????????# "" #??? | | ????????????????????????# % #??? | | ????????????????????????# *%! #??? | | ????????????????????????#% p g%g!g #??? | | ????????????????????????"@ % g]! #??? | | ????????????????????????" % p """ #??? | | ????????????????????????" " " #??? | | ????????????????????????# M " """ " #??? | | ????????????????????????# " " " """"""""#??? | | ????????????????????????# """ " " " #??? | | ????????????????????????#######################??? | | ?????????????????????????????????????????????????? | | ?????????????????????????????????????????????????? | | ?????????????????????????????????????????????????? | | ?????????????????????????????????????????????????? | | ?????????????????????????????????????????????????? | | ?????????????????????????????????????????????????? | | ?????????????????????????????????????????????????? | | ?????????????????????????????????????????????????? | | ?????????????????????????????????????????????????? | | ?????????????????????????????????????????????????? | | ?????????????????????????????????????????????????? | | ?????????????????????????????????????????????????? | | ?????????????????????????????????????????????????? | | ?????????????????????????????????????????????????? | | ?????????????????????????????????????????????????? | | ?????????????????????????????????????????????????? | | ?????????????????????????????????????????????????? | | ?????????????????????????????????????????????????? | +----------------------------------------------------+ Best States ------------- Heat Dissipation 158 Energy Generation 118 Energy Capacity 2300 Matter Stores 300 Matter Capacity 300 Sight Range 22 Robot Scan Range 18 Terrain Scan Density 10 Jamming Range 22 Power Amplification 40 Additional Mass Support 20 Armor Coverage 1200 Resistance: KI 25 Resistance: TH 30 Resistance: EX 15 Resistance: EM 15 Resistance: I 15 Resistance: S 15 Resistance: P 15 Core Shielding 30 Utility Shielding 66 Weapon Shielding 100 Point Defense Rating 480 Phase Shifting 15 Evasion (%) 65 Targeting Accuracy 20 Core Analysis 8 Recoil Reduction 4 Offensive Hacking 27 Defensive Hacking 10 Authchip Count 1 Trap Extractor Capacity 6 Item Schematics ----------------- Huge Storage Unit | -10/Materials | Hacked Plasma Cutter | -9/Materials | Hacked Med. Reactive Plating | -7/Factory | Hacked Proton Missile Launcher | -7/Zion | Archive Hvy. Phase Cannon | -7/Zion | Archive Hvy. Plasma Cannon | -7/Zion | Archive Xenon Bombardment Thruster | -7/Zion | Archive Coil Gun | -7/Zion | Archive Microactuators | -7/Zion | Archive Hrd. Heavy Armor Plating | -7/Zion | Archive Matter Compressor | -7/Zion | Archive Gauss Cannon | -7/Zion | Archive Tesla Rifle | -7/Zion | Archive Greatsword | -7/Zion | Archive Imp. Proton Missile Launcher | -7/Zion | Archive Fission Core | -7/Zion | Archive Magnetic Acceleration Cannon | -7/Zion | Archive Weapon Cycler | -7/Zion | Archive Hvy. Mass Driver | -7/Zion | Archive Combat Drone Bay | -6/Data Miner | Free Lgt. Regenerative Plating | -6/Data Miner | Free Cld. Nuclear Pulse Thruster | -6/Data Miner | Free Imp. Energy Well | -6/Data Miner | Free Enh. Coil Gun | -6/Data Miner | Free Imp. Linear Gravjet | -6/Data Miner | Free Imp. Force Booster | -6/Data Miner | Free Phase Gun | -6/Data Miner | Free Hacking Suite | -4/Factory | Scanalyzed Assault Drone Bay | -4/Zhirov | Free Exp. Heat Sink | -4/Zhirov | Free Exp. Optical Array | -4/Zhirov | Free Imp. Arc Thrower | -4/Zhirov | Free Quantum Capacitor | -3/Research | Hacked Robot Schematics ------------------ M-13 Machinist | -9/Materials | Hacked T-07 Excavator | -7/Zion | Archive B-48 Gladiator | -7/Zion | Archive L-41 Fighter | -7/Zion | Archive H-66 Slayer | -6/Data Miner | Free M-22 Extractor | -6/Data Miner | Free D-63 Destroyer | -6/Data Miner | Free G-50 Soldier | -6/Data Miner | Free X-77 Beamer | -6/Data Miner | Free C-65 Expert | -2/Quarantine | Archive Fabricated ------------ Plasma Cutter | x2 | -7/Factory Huge Storage Unit | x1 | -6/Factory | Authchip Quantum Capacitor | x2 | -3/Testing Alien Tech Used ----------------- Integrated Reactor Phase Redirector Transdimensional Reconstructor Subatomic Replicator Achievements -------------- None Challenges ------------ None Game ------ Seed WardroneMobileSource Manual? 0 Play Time 05:06:35 Cumulative 203.5 hours Start 2024.11.30 @ 23:44:56 End 2024.12.02 @ 22:39:26 Sessions 33 Manual Loads 0 Difficulty Rogue Special Mode None Game No. 51 Rogue 50 Adventurer 1 Explorer 0 Win Type - Total 16 Types 4/3/5/0/0/0/4/0/0 Lore% 57 Gallery% 74 Achievement% 67 Wizard Run 0 Options --------- Layout 0 ASCII 0 Keyboard 0 Movement Mouse Keybinds 0 Fullscreen 1 Font 18/Terminus Map View 76x50 Zoom Use 0% Tactical HUD 1 Map Filters NONE Filters NONE Steam 0 RUN: 8aef3b19-0e15-44f8-ad42-9e5455f37b13